[Event "Spring Chess Classic B 2024"]
[Site "Saint Louis"]
[Date "2024.04.18"]
[Round "7.4"]
[White "Stearman, Josiah"]
[Black "Batsuren, Dambasuren"]
[Result "1/2-1/2"]
[ECO "D36"]
[WhiteElo "2462"]
[BlackElo "2515"]
[Annotator "TA"]
[PlyCount "150"]
[EventDate "2024.04.11"]
[EventCountry "USA"]
[SourceTitle "playchess.com"]
[Source "ChessBase"]
[SourceQuality "1"]
[TimeControl "7200+30"]

{[%evp 59,150,115,114,121,121,90,89,93,93,95,91,99,91,96,89,90,118,103,103,99,152,103,152,152,152,152,152,152,152,152,152,152,152,152,152,40,79,79,152,50,152,144,152,144,152,152,152,152,152,152,152,152,152,152,152,152,152,152,152,152,152,0,152,0,152,0,13,8,8,8,8,0,19,19,19,8,30,30,30,30,30,30,30,21,30,0,30,0,30,0,30,0,30]} 1. d4 {[%emt 0:00:18]} Nf6 {[%emt 0:00:15]} 2. c4 {[%emt 0:00:06]} e6 {[%emt 0:00:13]} 3. Nc3 {[%emt 0:00:04]} d5 {[%emt 0:00:17]} 4. cxd5 {[%emt 0:00:05]} exd5 {[%emt 0:00:20]} 5. Bg5 {[%emt 0:00:08]} c6 {[%emt 0:00:23]} 6. Qc2 {[%emt 0:00:15]} Be7 {[%emt 0:01:05]} 7. e3 {[%emt 0:00:12]} Nbd7 {[%emt 0:01:10]} 8. Bd3 {[%emt 0:00:25]} h6 {[%emt 0:00:23]} 9. Bf4 {[%emt 0:01:08]} Nh5 {[%emt 0:01:36]} 10. Nf3 $1 {[%emt 0:05:00][%mdl 4] outshines the older 10.Bg3. D36: Queen's Gambit Declined: Exchange Variation: Main line (5 Bg5 c6 6 Qc2).} Nxf4 {[%emt 0:00:11]} 11. exf4 {[%emt 0:00:06]} Bd6 {[%emt 0:00:18]} 12. Ne5 {[%emt 0:03:03]} Qf6 {[%emt 0:08:32]} 13. g3 {[%emt 0:02:56]} g5 $146 {[%emt 0:00:38]} ({Predecessor:} 13... Nb6 14. O-O O-O 15. Rfe1 g6 16. Nd1 Bh3 17. Ne3 Rac8 18. Qe2 c5 19. N3g4 Qg7 {1-0 Moskalenko,V (2416)-Alfaro Rojas,A (2301) Catalunya-chT Gp1 2024 (1.4)}) 14. Qe2 {[%emt 0:02:11]} Kd8 {[%emt 0:08:13]} 15. Qh5 {[%emt 0:02:12]} Rf8 {[%emt 0:04:02]} 16. O-O-O {[%emt 0:06:02]} gxf4 {[%emt 0:01:57]} 17. Ng4 {[%emt 0:00:13]} Qg5 {[%emt 0:14:47]} 18. Qxh6 {[%emt 0:00:26]} Qxh6 {[%emt 0:00:31]} 19. Nxh6 {[%emt 0:00:03]} Nf6 {[%emt 0:00:07]} 20. Rdg1 {[%emt 0:07:59]} Be6 {[%emt 0:26:25]} 21. Nf5 {[%emt 0:04:14]} Bc7 {[%emt 0:07:22]} 22. f3 {[%emt 0:08:47]} fxg3 {[%emt 0:06:56]} 23. hxg3 {[%emt 0:00:09]} Rg8 {[%emt 0:00:08]} 24. Ne2 {[%emt 0:00:45]} Kd7 {[%emt 0:01:51]} 25. g4 {[%emt 0:01:23]} Rh8 {[%emt 0:18:45]} 26. g5 {[%emt 0:01:04]} Nh5 {[%emt 0:06:02]} 27. Rh4 {[%emt 0:02:05]} Rag8 {[%emt 0:03:30]} 28. Kd1 {[%emt 0:07:32]} Bd8 {[%emt 0:11:37]} 29. f4 {[%emt 0:00:26]} Kc7 {[%emt 0:06:10]} 30. Rgh1 {[%emt 0:00:38]} Nxf4 {[%emt 0:00:42]} (30... Bxf5 $2 31. Bxf5 Nxf4 32. Rxh8 $18) 31. Nxf4 {[%emt 0:00:17]} (31. Rxh8 Rxh8 32. Rxh8 Nxd3 $11) 31... Rxh4 {[%emt 0:00:08]} 32. Nxe6+ {[%emt 0:02:39]} ({But not} 32. Nxh4 Rxg5 33. Nxe6+ fxe6 $16) 32... fxe6 {[%emt 0:00:02]} 33. Nxh4 {[%emt 0:00:05]} Rh8 {[%emt 0:00:36]} 34. g6 {[%emt 0:01:15]} Bxh4 {[%emt 0:01:43]} 35. g7 {[%emt 0:05:43]} Rg8 {[%emt 0:00:02]} 36. Rxh4 {[%emt 0:00:09]} Rxg7 {[%emt 0:00:03]} 37. Kd2 {[%emt 0:00:52]} Re7 {[%emt 0:00:34]} 38. Rh5 {[%emt 0:00:12]} Kd6 {[%emt 0:00:14]} 39. Rh6 {[%emt 0:00:15]} Kc7 {[%emt 0:00:24]} (39... Rg7 $142 40. Bf1 a5) 40. a4 {[%emt 0:02:06]} ({Better is} 40. b4 $1) 40... e5 {[%emt 0:01:39] [#]} (40... Kb6 $142 41. Kc3 e5 42. dxe5 Rxe5) 41. dxe5 $1 $16 {[%emt 0:00:04]} Rxe5 {[%emt 0:00:05]} 42. Rh7+ {[%emt 0:00:02]} Kb8 {[%emt 0:00:08]} 43. b4 {[%emt 0:00:18]} a6 {[%emt 0:00:25]} 44. Kc3 {[%emt 0:00:14]} Rg5 {[%emt 0:00:33]} 45. Rh4 {[%emt 0:02:32]} Rg3 {[%emt 0:00:25]} 46. Rh8+ {[%emt 0:03:07]} Ka7 {[%emt 0:00:14]} 47. Kd4 {[%emt 0:00:11]} (47. a5 $16) 47... Rg4+ {[%emt 0:00:28]} 48. Kc5 {[%emt 0:00:09]} Rf4 {[%emt 0:00:25]} (48... Rg3 $142 49. Bf5 Rc3+ 50. Kd6 a5) 49. Rh7 {[%emt 0:00:58]} (49. a5 $16) 49... Rg4 {[%emt 0:00:20]} (49... Rf3 $14 50. Bg6 Rc3+ 51. Kd6 Rc4) 50. Rh1 {[%emt 0:01:26]} Rf4 {[%emt 0:01:18]} 51. Ra1 {[%emt 0:00:44]} Kb8 {[%emt 0:01:12]} 52. Rf1 {[%emt 0:00:12]} Rh4 {[%emt 0:00:13]} 53. Rc1 {[%emt 0:01:37]} Kc7 {[%emt 0:00:41]} 54. a5 {[%emt 0:00:21]} Kb8 {[%emt 0:00:26]} 55. Rf1 {[%emt 0:02:31]} Ka7 {[%emt 0:00:10]} 56. Rf8 {[%emt 0:01:45]} Rg4 {[%emt 0:00:23]} 57. Rh8 {[%emt 0:00:33]} Rf4 {[%emt 0:00:07]} 58. Rg8 {[%emt 0:00:03]} Rh4 {[%emt 0:00:10]} 59. Rg7 {[%emt 0:02:57]} Rf4 {[%emt 0:00:10]} 60. Rg8 {[%emt 0:05:03]} Rh4 $1 {[%emt 0:00:07]} 61. Rf8 {[%emt 0:00:09]} Rg4 $1 {[%emt 0:00:14] [#]} 62. b5 $2 {[%emt 0:00:53]} (62. Rf3 $1 $16) 62... cxb5 {[%emt 0:01:43]} 63. Be2 {[%emt 0:00:11]} Ra4 {[%emt 0:00:33]} 64. Bf3 {[%emt 0:02:18]} (64. Kxd5 Rxa5 65. Rf7 Ra2) 64... Rxa5 {[%emt 0:00:14]} 65. Kxd5 {[%emt 0:00:37]} b4+ {[%emt 0:00:37]} 66. Kc4 {[%emt 0:00:01]} Rb5 {[%emt 0:00:18]} 67. Kb3 {[%emt 0:00:03]} Rb6 {[%emt 0:00:42]} 68. Rf7 {[%emt 0:00:04]} Kb8 {[%emt 0:00:09]} 69. Bd5 {[%emt 0:00:12]} Rb5 {[%emt 0:00:32]} 70. Bc4 {[%emt 0:00:15]} Rb6 {[%emt 0:00:09]} 71. Be2 {[%emt 0:00:07]} Ka7 {[%emt 0:00:10]} 72. Bf3 {[%emt 0:00:08]} Kb8 {[%emt 0:00:05]} 73. Rf8+ {[%emt 0:00:02]} Ka7 {[%emt 0:00:05]} 74. Rf7 {[%emt 0:00:02]} Kb8 {[%emt 0:00:05]} 75. Rf8+ {[%emt 0:00:02]} Ka7 {[%emt 0:00:04]} 1/2-1/2

[Event "Spring Chess Classic B 2024"]
[Site "Saint Louis"]
[Date "2024.04.18"]
[Round "7.5"]
[White "Kantor, Gergely"]
[Black "Woodward, Andy"]
[Result "1-0"]
[ECO "A16"]
[WhiteElo "2527"]
[BlackElo "2515"]
[Annotator "TA"]
[PlyCount "73"]
[EventDate "2024.04.11"]
[EventCountry "USA"]
[SourceTitle "playchess.com"]
[Source "ChessBase"]
[SourceQuality "1"]
[TimeControl "7200+30"]

{[%evp 9,73,25,27,0,0,0,28,-1,44,28,27,28,30,37,35,35,27,30,27,20,39,26,56,21,8,16,22,13,10,14,187,170,180,173,180,173,190,185,189,176,181,174,183,187,205,201,334,349,354,348,399,395,422,408,470,431,440,436,430,432,703,688,1132,1102,899,868]} 1. Nf3 {[%emt 0:01:12]} Nf6 {[%emt 0:00:11]} 2. c4 {[%emt 0:00:03]} g6 {[%emt 0:00:12]} 3. Nc3 {[%emt 0:00:02]} d5 {[%emt 0:00:19]} 4. cxd5 {[%emt 0:00:04]} Nxd5 {[%emt 0:00:13]} 5. h4 {[%emt 0:00:34][%cal Bh2h4,Bh4h5][%mdl 32]} Bg7 {[%emt 0:00:10]} 6. h5 {[%emt 0:00:05]} Nc6 {[%emt 0:01:21]} 7. d4 {[%emt 0:00:57]} Nb6 {[%emt 0:11:34][%cal Rc6d4]} 8. Bf4 {[%emt 0:18:45] White has an edge.} Bg4 {[%emt 0:03:16]} (8... Nxd4 $5 9. Nxd4 e5 $11) 9. hxg6 $1 {[%emt 0:16:58]} hxg6 {[%emt 0:00:30]} 10. Rxh8+ {[%emt 0:00:12]} Bxh8 {[%emt 0:00:09]} 11. e3 {[%emt 0:00:21]} e5 {[%emt 0:14:38]} 12. dxe5 {[%emt 0:03:43]} ({But not} 12. Bxe5 Nxe5 13. dxe5 Qe7 $11) 12... Qxd1+ $1 {[%emt 0:02:25]} 13. Rxd1 {[%emt 0:00:35]} Bxf3 {[%emt 0:00:23]} 14. gxf3 {[%emt 0:00:04]} Nxe5 {[%emt 0:01:24]} 15. Nb5 {[%emt 0:22:43]} Rc8 {[%emt 0:29:36]} 16. Bh3 {[%emt 0:13:22]} f5 {[%emt 0:00:31]} 17. Ke2 {[%emt 0:16:52][%cal Oe3e4]} a6 {[%emt 0:03:15]} 18. Nc3 {[%emt 0:02:14]} Nec4 {[%emt 0:07:00]} 19. b3 $36 {[%emt 0:02:59][%mdl 2048] Black is under pressure.} Nb2 $2 {[%emt 0:05:43] This move loses the game for Black.} (19... Bxc3 $11 {and Black stays safe.} 20. bxc4 Kf7) 20. Rc1 $18 {[%emt 0:01:10]} c5 {[%emt 0:00:18][%cal Bc7c5,Bc5c4][%mdl 32]} 21. Ne4 $1 {[%emt 0:04:12] Nd6+ is the strong threat.} Rc6 {[%emt 0:16:32] [#]} 22. Nd6+ {[%emt 0:00:40]} ({Stronger than} 22. Nxc5 Nd5 23. Kd2 Nxf4 24. exf4 Rd6+ 25. Kc2 b6 26. Nxa6 Rc6+ 27. Kd2 Rxc1 28. Kxc1 Nd3+ 29. Kd2 Nxf4 $11) 22... Ke7 {[%emt 0:00:50]} 23. Nxb7 {[%emt 0:01:07]} c4 {[%emt 0:00:18]} 24. Bg5+ {[%emt 0:03:26]} Bf6 {[%emt 0:02:55]} 25. Bxf6+ {[%emt 0:00:10]} Kxf6 {[%emt 0:00:09]} 26. Na5 {[%emt 0:01:23]} Rc5 {[%emt 0:09:49] [#]} 27. Nxc4 {[%emt 0:01:06]} g5 {[%emt 0:01:44] [#]} (27... f4 {keeps fighting.} 28. Bf1 (28. exf4 N2xc4 29. bxc4 Nd5 $16) 28... fxe3 29. Kxe3 g5) 28. Bxf5 $1 {[%emt 0:09:26][%mdl 512]} N2xc4 {[%emt 0:05:48]} 29. Bb1 {[%emt 0:02:23]} Rb5 {[%emt 0:08:40]} 30. bxc4 {[%emt 0:00:20][%cal Bb3c4,Bc4c5,Bc5c6][%mdl 4128] Endgame. KRB-KRN} Rb2+ {[%emt 0:00:01]} 31. Kf1 {[%emt 0:00:21]} Ke5 {[%emt 0:01:36]} 32. c5 {[%emt 0:00:25] White is clearly winning.} Nd5 {[%emt 0:00:09]} 33. Be4 {[%emt 0:00:56] aiming for Bxd5.} Nc7 {[%emt 0:00:08]} 34. Rc2 {[%emt 0:00:34]} Rxc2 {[%emt 0:02:18]} (34... Rb8 $142 35. c6 Rg8 36. Rc5+ Kd6) 35. Bxc2 {[%emt 0:00:03]} Kd5 {[%emt 0:00:09]} 36. Kg2 {[%emt 0:00:34]} Ne8 {[%emt 0:00:00] [#]} 37. c6 $1 {[%emt 0:00:17] Weighted Error Value: White=0.05 (flawless) /Black=0.30.  Loses game:     	---       	Black=1      Mistake:       	---       	Black=2      Inaccurate:     	White=2     	Black=4      OK:         	White=14    	Black=11     Best:        	White=3     	Black=2      Strong:       	White=2     	Black=1      Brilliant:      	White=1     	---} 1-0

[Event "Spring Chess Classic B 2024"]
[Site "Saint Louis"]
[Date "2024.04.18"]
[Round "8.1"]
[White "Raja Harshit"]
[Black "Woodward, Andy"]
[Result "1-0"]
[ECO "A16"]
[WhiteElo "2458"]
[BlackElo "2515"]
[Annotator "TA"]
[PlyCount "79"]
[EventDate "2024.04.11"]
[EventCountry "USA"]
[SourceTitle "playchess.com"]
[Source "ChessBase"]
[SourceQuality "1"]
[TimeControl "7200+30"]

{[%evp 9,79,49,50,15,33,25,23,26,29,30,10,7,22,21,29,17,4,0,0,0,0,0,185,195,186,190,187,186,181,167,409,413,418,425,421,416,433,427,425,409,408,409,478,418,510,501,480,519,515,510,491,486,629,471,688,697,968,921,1175,1193,1030,847,885,843,873,852,29972,29973,29974,29975,29974,29975]} 1. Nf3 {[%emt 0:00:42]} Nf6 {[%emt 0:01:04]} 2. c4 {[%emt 0:00:18]} g6 {[%emt 0:00:36]} 3. Nc3 {[%emt 0:00:31]} Bg7 {[%emt 0:00:39]} 4. e4 {[%emt 0:03:02]} e5 {[%emt 0:00:14]} 5. Nxe5 {[%emt 0:00:11]} O-O {[%emt 0:00:10]} 6. d3 {[%emt 0:00:30]} Nxe4 $1 {[%emt 0:00:35]} 7. dxe4 {[%emt 0:00:23]} Bxe5 {[%emt 0:00:10]} 8. Bh6 {[%emt 0:00:10] White has an edge.} Re8 {[%emt 0:01:12]} 9. Qd2 {[%emt 0:04:26]} d6 {[%emt 0:12:27]} 10. O-O-O {[%emt 0:00:11]} Nd7 {[%emt 0:05:23]} 11. h4 {[%emt 0:00:10]} Nc5 {[%emt 0:13:33]} 12. h5 {[%emt 0:00:11]} c6 {[%emt 0:05:41]} (12... g5 {simplifies} 13. Bxg5 Bxc3 14. bxc3 Nxe4 15. Bxd8 Nxd2 16. Bxc7 Nxf1 17. Rhxf1 Be6) 13. hxg6 {[%emt 0:00:07]} fxg6 {[%emt 0:12:27]} 14. f4 {[%emt 0:00:29]} Bf6 {[%emt 0:06:17]} 15. f5 {[%emt 0:00:44]} Qa5 $2 {[%emt 0:07:44] White leaves nothing to chance now.} (15... gxf5 $11 {and Black stays safe.} 16. Rh5 (16. Qxd6 Qxd6 17. Rxd6 Bxc3 $17) 16... Nxe4 17. Nxe4 Rxe4) 16. fxg6 $18 {[%emt 0:14:28]} (16. Qxd6 $2 {loses.} Bxc3 17. bxc3 Qxc3+ (17... Nxe4 18. Qd4 $17) 18. Kb1 Nxe4 $19) 16... hxg6 {[%emt 0:04:24]} 17. Qxd6 {[%emt 0:04:33]} Be6 {[%emt 0:15:32][%cal Of6e5]} 18. Qg3 {[%emt 0:06:39]} Bf7 {[%emt 0:01:58][%cal Of6e5]} 19. Bd2 $1 $40 {[%emt 0:05:24][%cal Bh6d2,Bd2g5,Bg5f6][%mdl 160] White is out for blood.} Qb6 $2 {[%emt 0:01:00]} (19... Qb4) 20. Bg5 $1 {[%emt 0:13:31]} Nxe4 {[%emt 0:01:37][%cal Bc5e4,Be4f6,Bf6h5][%mdl 32] [#]} 21. Bxf6 $1 {[%emt 0:00:04]} Nxf6 {[%emt 0:00:08]} 22. Qh4 $1 {[%emt 0:02:42][%csl Gh1][%cal Rh4h8]} Qe3+ {[%emt 0:00:24]} 23. Kc2 $1 {[%emt 0:00:43]} ({Weaker is} 23. Kb1 Nh5 $14) 23... Nh5 {[%emt 0:03:36] [#]} 24. g4 $1 {[%emt 0:02:43]} g5 {[%emt 0:01:10] [#]} 25. Qh2 {[%emt 0:00:05]} Bg6+ {[%emt 0:02:35]} 26. Bd3 {[%emt 0:00:35]} Rf8 {[%emt 0:00:32] White must now prevent ...Rf2+.} 27. Bxg6 {[%emt 0:03:17]} Rf2+ {[%emt 0:00:13] [#]} 28. Qxf2 $3 {[%emt 0:00:07][%mdl 512]} Qxf2+ {[%emt 0:00:08] Black is weak on the light squares} 29. Rd2 {[%emt 0:00:01]} Qf6 {[%emt 0:03:02]} 30. gxh5 {[%emt 0:00:20]} ({Less strong is} 30. Bxh5 Rd8 31. Rxd8+ Qxd8 $18) 30... Rd8 {[%emt 0:00:54]} 31. Re2 {[%emt 0:04:10]} Kg7 {[%emt 0:01:38]} (31... Rf8 $142 32. Rg1 Kh8) 32. Rhe1 {[%emt 0:00:31]} Rd7 {[%emt 0:00:23]} 33. Re6 {[%emt 0:00:33]} Qf2+ {[%emt 0:02:40]} 34. R1e2 {[%emt 0:00:04]} Qh4 {[%emt 0:00:07] [#]} 35. h6+ $1 {[%emt 0:01:16]} Qxh6 {[%emt 0:00:09]} 36. Be8 {[%emt 0:00:05][%csl LRd7,LRh6][%cal Oe6h6]} Qh7+ {[%emt 0:00:05]} 37. Kb3 {[%emt 0:00:08]} Kf8 {[%emt 0:00:09]} 38. Rf2+ {[%emt 0:06:25] White mates.} Kg8 {[%emt 0:00:09]} 39. Bxd7 {[%emt 0:00:10]} Qxd7 {[%emt 0:00:06]} 40. Rg6+ {[%emt 0:00:02] Weighted Error Value: White=0.10 (very precise) /Black=0.68.  Loses game:     	---       	Black=1      Mistake:       	---       	Black=2      Inaccurate:     	---       	Black=1      OK:         	White=5     	Black=12     Best:        	White=5     	Black=1      Strong:       	White=6     	Black=1      Brilliant:      	White=1     	---} 1-0

[Event "Spring Chess Classic B 2024"]
[Site "Saint Louis"]
[Date "2024.04.19"]
[Round "8.2"]
[White "Batsuren, Dambasuren"]
[Black "Kantor, Gergely"]
[Result "1-0"]
[ECO "E54"]
[WhiteElo "2515"]
[BlackElo "2527"]
[Annotator "TA"]
[PlyCount "101"]
[EventDate "2024.04.11"]
[EventCountry "USA"]
[SourceTitle "playchess.com"]
[Source "ChessBase"]
[SourceQuality "1"]
[TimeControl "7200+30"]

{[%evp 40,101,108,109,133,134,147,145,163,93,92,76,150,154,159,152,146,135,145,127,148,69,84,39,150,0,210,210,195,136,161,0,232,231,247,237,229,219,289,318,462,468,552,537,1156,544,1610,618,2338,2202,3274,2948,29974,29974,29984,29985,29983,29972,29977,29978,29985,29986,29986,1927]} 1. d4 {[%emt 0:00:04]} Nf6 {[%emt 0:00:08]} 2. c4 {[%emt 0:00:06]} e6 {[%emt 0:00:02]} 3. Nc3 {[%emt 0:00:19]} Bb4 {[%emt 0:00:42]} 4. e3 {[%emt 0:00:08]} O-O {[%emt 0:00:09]} 5. Bd3 {[%emt 0:00:11]} d5 {[%emt 0:00:09]} 6. Nf3 {[%emt 0:00:23]} dxc4 {[%emt 0:01:14]} 7. Bxc4 {[%emt 0:00:06]} c5 {[%emt 0:00:06]} 8. O-O {[%emt 0:00:12]} Nc6 {[%emt 0:01:54]} 9. Re1 {[%emt 0:01:24] E54: Nimzo-Indian: Rubinstein: Main Line: 7...dxc4 8 Bxc4.} h6 {[%emt 0:07:56]} 10. a3 {[%emt 0:07:29]} Ba5 {[%emt 0:01:14]} 11. Qd3 $146 {[%emt 0:03:56]} ({Predecessor:} 11. h3 cxd4 12. exd4 Bc7 13. d5 exd5 14. Nxd5 Nxd5 15. Bxd5 Qf6 16. Qb3 Rb8 17. Bd2 Qg6 {½-½ Paredes Guzman,F (1891)-Berdayes Ason,D (2445) Iberoamerican-ch 8th 2022 (1)}) 11... a6 {[%emt 0:04:45]} 12. dxc5 {[%emt 0:01:20]} Qxd3 {[%emt 0:02:24]} 13. Bxd3 {[%emt 0:00:11]} Bxc3 {[%emt 0:08:36]} 14. bxc3 {[%emt 0:00:16]} Nd7 {[%emt 0:00:12]} 15. a4 {[%emt 0:02:55]} Nxc5 {[%emt 0:19:00]} 16. Bc2 {[%emt 0:00:19]} Rd8 {[%emt 0:14:00]} 17. Ba3 {[%emt 0:03:53]} Nd7 {[%emt 0:02:58]} 18. Red1 {[%emt 0:10:22]} b6 {[%emt 0:18:26]} 19. Bd6 {[%emt 0:29:51]} Nf6 {[%emt 0:10:10]} 20. c4 {[%emt 0:11:09]} Ra7 {[%emt 0:16:49]} (20... Ne8 $14) 21. Ne5 $16 {[%emt 0:13:33]} Nxe5 {[%emt 0:00:50]} (21... Rxd6 $2 22. Rxd6 Bd7 23. Nxc6 $18) 22. Bxe5 {[%emt 0:00:03]} Rxd1+ {[%emt 0:02:17]} 23. Rxd1 {[%emt 0:00:09]} Nd7 {[%emt 0:00:23] [#]} 24. Bb8 {[%emt 0:06:16]} (24. a5 $1 $18 {[%cal Ra5b6][%mdl 512] axb6 would now be deadly.} bxa5 (24... b5 25. c5) 25. c5) 24... Rb7 $16 {[%emt 0:02:21]} 25. Bg3 {[%emt 0:00:23]} a5 {[%emt 0:05:06] [#]} ({Better is} 25... f6) 26. Be4 $1 $16 {[%emt 0:01:34]} Ra7 {[%emt 0:00:08]} 27. Bb8 {[%emt 0:08:16]} Ra6 {[%emt 0:00:12]} 28. Bc7 {[%emt 0:00:22]} Kf8 {[%emt 0:04:02]} 29. Bc6 {[%emt 0:02:44]} Ke7 {[%emt 0:00:55]} 30. f4 {[%emt 0:02:56]} (30. Bb5 $16 {Hoping for Rxd7+.} Ra7 31. Bd6+ Kf6 32. Ba3) 30... f5 {[%emt 0:01:08]} 31. Rb1 {[%emt 0:05:30]} Kf7 {[%emt 0:03:49]} (31... Ra7 $14 32. Bxb6 Nxb6 33. Rxb6 Ra6) 32. Rd1 {[%emt 0:04:40]} ({White should play} 32. Bd8 $16) 32... Ra7 $2 {[%emt 0:00:28]} (32... Ke7 $11 {and Black stays safe.}) 33. Bd8 $18 {[%emt 0:00:44]} (33. Rxd7+ Bxd7 34. Bb8 (34. Bxb6 $2 Ra6 $19) 34... Bxc6 $11) 33... Nc5 {[%emt 0:01:52]} 34. Rb1 {[%emt 0:04:54]} (34. Bxb6 $6 Ra6 35. Rb1 Nd7 36. Bxd7 (36. c5 Nxc5 37. Bf3 Ne4 $16) 36... Bxd7 $14) (34. Bb5 $18 Rb7 35. Rd6) 34... Nd7 {[%emt 0:00:14]} 35. Rd1 {[%emt 0:02:07]} (35. Bxb6 Ra6 36. Bxd7 (36. c5 Nxc5 37. Bf3 Ne4 $14) 36... Bxd7 $14) (35. Kf2 $142) 35... Nc5 $1 $18 {[%emt 0:00:12] [#]} 36. Bb5 $1 {[%emt 0:02:08]} (36. Bxb6 $6 Ra6 37. Rb1 Nd7 38. Bxd7 (38. c5 Nxc5 39. Bf3 Ne4 $16) 38... Bxd7 $14) 36... Rb7 {[%emt 0:01:59]} 37. Rd6 {[%emt 0:00:52]} Bd7 {[%emt 0:00:29]} 38. Bxb6 {[%emt 0:00:36]} Bxb5 {[%emt 0:01:39]} 39. axb5 {[%emt 0:00:16]} (39. Bxc5 Bxc4 40. h3 Bb3 $11) 39... Nb3 {[%emt 0:00:28]} (39... Ne4 {was called for.} 40. Rc6 a4) 40. c5 $18 {[%emt 0:00:52]} a4 {[%emt 0:00:05]} 41. Rd8 {[%emt 0:00:37]} a3 {[%emt 0:00:48]} 42. Ra8 {[%emt 0:00:22]} (42. c6 $142 a2 43. Ra8 (43. cxb7 a1=Q+ 44. Kf2 Qb2+ 45. Kg3 Nd2 $18) 43... Rxb6 44. c7 (44. Rxa2 Ke7 $17)) 42... Nd2 {[%emt 0:00:17]} 43. Rxa3 {[%emt 0:01:27]} (43. c6 $142 Rxb6 44. c7 (44. Rxa3 $2 Rxb5 45. Ra6 Rc5 $19)) 43... Kg6 {[%emt 0:00:22]} 44. c6 {[%emt 0:02:00]} Rxb6 {[%emt 0:00:02]} 45. c7 {[%emt 0:00:03]} Rxb5 {[%emt 0:00:46]} 46. c8=Q {[%emt 0:00:14]} ({And not} 46. c8=R Rb1+ 47. Kf2 Ne4+ 48. Ke2 (48. Kf3 Rb2) 48... Rb2+ 49. Kf1 Rb1+ 50. Ke2 Rb2+ 51. Kf1 Rb1+ 52. Ke2 $11) 46... Rb1+ {[%emt 0:00:05]} 47. Kf2 {[%emt 0:00:04]} Ne4+ {[%emt 0:00:02]} 48. Ke2 {[%emt 0:00:14]} Rb2+ {[%emt 0:00:12]} 49. Kd1 {[%emt 0:00:12]} Rb1+ {[%emt 0:02:24]} 50. Kc2 {[%emt 0:00:08]} Rb6 {[%emt 0:00:05]} 51. Ra6 {[%emt 0:00:12]} (51. Ra7 $142 Nd6 52. Qc7 (52. Qxe6+ Kh7 53. Qf6 Rb7 54. Rxb7 Nxb7 55. Qxf5+ Kg8 56. Qd5+ Kh8 57. Qxb7 Kg8) 52... Rb7 53. Rxb7 Nxb7 54. Qxb7 h5 55. Qe7 h4 56. Qxe6+ (56. Qxh4 Kf7 57. Kc3 Ke8 58. Kd4 Kd7 59. Kc5 Ke8 60. Kd6 Kf7 61. Qe7+ Kg8) 56... Kh7 57. Qxf5+ Kh8 58. Qg6) 1-0